[Event "*** MasterClass Titled Tuesday Blitz"]
[Site "Chess.com"]
[Date "2017.12.12"]
[Round "3"]
[White "truki"]
[Black "biostatistician"]
[Result "1/2-1/2"]
[WhiteElo "2210"]
[BlackElo "2335"]
[TimeControl "180+2"]
[EndTime "13:34:56 PST"]
[Termination "Game drawn - insufficient material"]

1. d4 {[%clk 0:03:01.9]} 1... Nf6 {[%clk 0:03:00.5]} 2. Nf3 {[%clk 0:03:03.2]}
2... g6 {[%clk 0:03:02]} 3. c4 {[%clk 0:03:04.1]} 3... Bg7 {[%clk 0:03:03.9]} 4.
Nc3 {[%clk 0:03:05.2]} 4... O-O {[%clk 0:03:05.8]} 5. e4 {[%clk 0:03:05.7]} 5...
d6 {[%clk 0:03:07.3]} 6. Be2 {[%clk 0:03:07.3]} 6... e5 {[%clk 0:03:08.5]} 7.
Be3 {[%clk 0:03:08.9]} 7... Nbd7 {[%clk 0:03:08.5]} 8. O-O {[%clk 0:03:06.6]}
8... Ng4 {[%clk 0:03:09.3]} 9. Bg5 {[%clk 0:03:06.8]} 9... f6 {[%clk 0:03:10.3]}
10. Bh4 {[%clk 0:03:05.3]} 10... g5 {[%clk 0:03:10.3]} 11. Bg3 {[%clk
0:03:06.1]} 11... Nh6 {[%clk 0:03:11.1]} 12. dxe5 {[%clk 0:03:02.5]} 12... fxe5
{[%clk 0:03:10.3]} 13. Qd2 {[%clk 0:02:54]} 13... Nf7 {[%clk 0:03:05.3]} 14. h4
{[%clk 0:02:52.7]} 14... g4 {[%clk 0:03:00.4]} 15. Ng5 {[%clk 0:02:52.9]} 15...
Bh6 {[%clk 0:02:46.1]} 16. Bxg4 {[%clk 0:02:51]} 16... Nxg5 {[%clk 0:02:44.7]}
17. hxg5 {[%clk 0:02:52.6]} 17... Bxg5 {[%clk 0:02:42.2]} 18. Qe2 {[%clk
0:02:52.4]} 18... Nf6 {[%clk 0:02:38.4]} 19. Bxc8 {[%clk 0:02:52.5]} 19... Rxc8
{[%clk 0:02:37.1]} 20. Rad1 {[%clk 0:02:50.2]} 20... Qe7 {[%clk 0:02:34.1]} 21.
Nd5 {[%clk 0:02:49.7]} 21... Nxd5 {[%clk 0:02:34]} 22. cxd5 {[%clk 0:02:50.1]}
22... Kh8 {[%clk 0:02:26.6]} 23. Rd3 {[%clk 0:02:50.6]} 23... Bf4 {[%clk
0:02:23.6]} 24. Qh5 {[%clk 0:02:43.6]} 24... Bxg3 {[%clk 0:02:18.6]} 25. Rxg3
{[%clk 0:02:43.5]} 25... Rg8 {[%clk 0:02:20.1]} 26. Rxg8+ {[%clk 0:02:35.6]}
26... Rxg8 {[%clk 0:02:19.3]} 27. Rc1 {[%clk 0:02:34.7]} 27... Qd7 {[%clk
0:01:41.1]} 28. g3 {[%clk 0:02:26.2]} 28... Rg6 {[%clk 0:01:41.2]} 29. Qf3
{[%clk 0:02:23.5]} 29... Kg8 {[%clk 0:01:37.9]} 30. Rc3 {[%clk 0:02:22.9]} 30...
Rg7 {[%clk 0:01:31.9]} 31. Qf5 {[%clk 0:02:19.7]} 31... Qxf5 {[%clk 0:01:29]}
32. exf5 {[%clk 0:02:21.6]} 32... h5 {[%clk 0:01:27.6]} 33. Kg2 {[%clk
0:02:21.7]} 33... Kh7 {[%clk 0:01:27.6]} 34. Kh3 {[%clk 0:02:22.4]} 34... Kh6
{[%clk 0:01:28.7]} 35. f3 {[%clk 0:02:22.7]} 35... Kg5 {[%clk 0:01:28.8]} 36. g4
{[%clk 0:02:24]} 36... Rh7 {[%clk 0:01:26.7]} 37. Kg3 {[%clk 0:02:22.6]} 37...
a5 {[%clk 0:01:24.8]} 38. Rc4 {[%clk 0:02:22.7]} 38... b5 {[%clk 0:01:22]} 39.
Re4 {[%clk 0:02:23.5]} 39... hxg4 {[%clk 0:01:14.5]} 40. fxg4 {[%clk 0:02:23.9]}
40... Rh1 {[%clk 0:01:15.9]} 41. a4 {[%clk 0:02:25.4]} 41... Rb1 {[%clk
0:01:10.5]} 42. axb5 {[%clk 0:02:23.6]} 42... Rxb2 {[%clk 0:01:12.4]} 43. Rc4
{[%clk 0:02:21.9]} 43... Rb3+ {[%clk 0:01:11.5]} 44. Kg2 {[%clk 0:02:19.6]}
44... Rxb5 {[%clk 0:01:13]} 45. Rxc7 {[%clk 0:02:13.9]} 45... Kxg4 {[%clk
0:01:02.9]} 46. f6 {[%clk 0:02:13.3]} 46... Rb2+ {[%clk 0:00:59.7]} 47. Kf1
{[%clk 0:02:14.2]} 47... Rb4 {[%clk 0:00:55.8]} 48. Ke2 {[%clk 0:02:13.7]} 48...
Rf4 {[%clk 0:00:54.7]} 49. f7 {[%clk 0:02:13.6]} 49... a4 {[%clk 0:00:55.4]} 50.
Rd7 {[%clk 0:02:12.6]} 50... a3 {[%clk 0:00:50.2]} 51. Rxd6 {[%clk 0:02:13.8]}
51... Rxf7 {[%clk 0:00:51.2]} 52. Ra6 {[%clk 0:02:14.8]} 52... Rd7 {[%clk
0:00:35.3]} 53. Ke3 {[%clk 0:02:15.1]} 53... Rxd5 {[%clk 0:00:34.8]} 54. Ke4
{[%clk 0:02:13]} 54... Rd4+ {[%clk 0:00:28.1]} 55. Kxe5 {[%clk 0:02:13.9]} 55...
Rd3 {[%clk 0:00:29.1]} 56. Ke4 {[%clk 0:02:15.1]} 56... Rg3 {[%clk 0:00:25.8]}
57. Kd4 {[%clk 0:02:14]} 57... Kf4 {[%clk 0:00:24.4]} 58. Kc4 {[%clk 0:02:15.1]}
58... Ke4 {[%clk 0:00:25.4]} 59. Kb4 {[%clk 0:02:15.2]} 59... Kd4 {[%clk
0:00:26.8]} 60. Rxa3 {[%clk 0:02:16.2]} 60... Rxa3 {[%clk 0:00:28.2]} 61. Kxa3
{[%clk 0:02:18.1]} 1/2-1/2

[Event "*** MasterClass Titled Tuesday Blitz"]
[Site "Chess.com"]
[Date "2017.12.12"]
[Round "3"]
[White "GameOverBro"]
[Black "champ1000"]
[Result "1-0"]
[WhiteElo "2253"]
[BlackElo "2247"]
[TimeControl "180+2"]
[EndTime "13:35:15 PST"]
[Termination "GameOverBro won by resignation"]

1. e4 {[%clk 0:03:01.9]} 1... c5 {[%clk 0:03:00.4]} 2. Ne2 {[%clk 0:03:02.6]}
2... g6 {[%clk 0:02:59.3]} 3. Nbc3 {[%clk 0:03:02.6]} 3... Bg7 {[%clk
0:02:59.7]} 4. d4 {[%clk 0:03:03.8]} 4... cxd4 {[%clk 0:03:00.7]} 5. Nxd4 {[%clk
0:03:05.7]} 5... d6 {[%clk 0:03:01.9]} 6. g3 {[%clk 0:03:06.3]} 6... Nf6 {[%clk
0:03:02.5]} 7. Bg2 {[%clk 0:03:07.4]} 7... Nc6 {[%clk 0:03:02]} 8. Nde2 {[%clk
0:03:07.6]} 8... O-O {[%clk 0:03:03]} 9. O-O {[%clk 0:03:09]} 9... Bd7 {[%clk
0:02:50.2]} 10. h3 {[%clk 0:03:08.6]} 10... a6 {[%clk 0:02:39.1]} 11. a4 {[%clk
0:03:09]} 11... Rb8 {[%clk 0:02:39.1]} 12. Nd5 {[%clk 0:03:07.2]} 12... b5
{[%clk 0:02:32.9]} 13. axb5 {[%clk 0:03:07.1]} 13... axb5 {[%clk 0:02:33.8]} 14.
c3 {[%clk 0:03:07.4]} 14... Be6 {[%clk 0:02:28.6]} 15. Nef4 {[%clk 0:03:01.5]}
15... Bxd5 {[%clk 0:02:19.2]} 16. Nxd5 {[%clk 0:02:59.9]} 16... Nd7 {[%clk
0:02:20.4]} 17. Ra6 {[%clk 0:02:50.5]} 17... Nce5 {[%clk 0:02:11.2]} 18. Qe2
{[%clk 0:02:26.8]} 18... Nc5 {[%clk 0:01:55.3]} 19. Ra7 {[%clk 0:02:24]} 19...
Nc6 {[%clk 0:01:54.5]} 20. Ra2 {[%clk 0:02:13.4]} 20... e6 {[%clk 0:01:50.6]}
21. Nb4 {[%clk 0:01:56.9]} 21... Nxb4 {[%clk 0:01:32.1]} 22. cxb4 {[%clk
0:01:58.8]} 22... Na4 {[%clk 0:01:32.7]} 23. Rd1 {[%clk 0:01:57.1]} 23... Qc7
{[%clk 0:01:28.4]} 24. Bf4 {[%clk 0:01:55.5]} 24... Rfd8 {[%clk 0:01:23]} 25.
Qd2 {[%clk 0:01:47.9]} 25... Qc4 {[%clk 0:00:57.4]} 26. Rda1 {[%clk 0:01:22.7]}
26... Rb6 {[%clk 0:00:44.2]} 27. h4 {[%clk 0:01:19.9]} 27... d5 {[%clk
0:00:36.2]} 28. exd5 {[%clk 0:01:19.8]} 28... exd5 {[%clk 0:00:36.8]} 29. Bg5
{[%clk 0:01:16.4]} 29... Rd7 {[%clk 0:00:32.2]} 30. h5 {[%clk 0:01:15.7]} 30...
Bf8 {[%clk 0:00:30.2]} 31. Bh3 {[%clk 0:01:09]} 31... f5 {[%clk 0:00:27.1]} 32.
h6 {[%clk 0:00:58.3]} 32... Re6 {[%clk 0:00:22.1]} 33. Bf1 {[%clk 0:00:51.8]}
33... Qxb4 {[%clk 0:00:21]} 34. Qxb4 {[%clk 0:00:52.3]} 34... Bxb4 {[%clk
0:00:21.7]} 35. Bxb5 {[%clk 0:00:53.8]} 35... Nb6 {[%clk 0:00:16.1]} 36. Bxd7
{[%clk 0:00:52.6]} 36... Nxd7 {[%clk 0:00:18]} 37. Ra8+ {[%clk 0:00:52.9]} 37...
Nf8 {[%clk 0:00:19.2]} 38. R1a7 {[%clk 0:00:53.5]} 38... d4 {[%clk 0:00:17.3]}
39. Rg7+ {[%clk 0:00:51.2]} 39... Kh8 {[%clk 0:00:18.5]} 40. Bd2 {[%clk
0:00:50.4]} 40... Bd6 {[%clk 0:00:17.4]} 41. Rd8 {[%clk 0:00:48.8]} 41... g5
{[%clk 0:00:16.4]} 42. Bxg5 {[%clk 0:00:48.2]} 42... Rg6 {[%clk 0:00:17.6]} 43.
Rxg6 {[%clk 0:00:47.1]} 43... hxg6 {[%clk 0:00:17]} 44. Rxd6 {[%clk 0:00:47.7]}
1-0

[Event "*** MasterClass Titled Tuesday Blitz"]
[Site "Chess.com"]
[Date "2017.12.12"]
[Round "3"]
[White "pKiLz5Rn9b"]
[Black "gemarin"]
[Result "0-1"]
[WhiteElo "2594"]
[BlackElo "1840"]
[TimeControl "180+2"]
[EndTime "13:35:28 PST"]
[Termination "gemarin won on time"]

1. b3 {[%clk 0:03:01.9]} 1... d5 {[%clk 0:02:57.7]} 2. Bb2 {[%clk 0:03:03.8]}
2... c6 {[%clk 0:02:58.8]} 3. Nf3 {[%clk 0:03:05.3]} 3... Nf6 {[%clk 0:02:59.4]}
4. g3 {[%clk 0:03:06.7]} 4... Bg4 {[%clk 0:02:59]} 5. Bg2 {[%clk 0:03:08]} 5...
e6 {[%clk 0:02:59.8]} 6. O-O {[%clk 0:03:09.5]} 6... Nbd7 {[%clk 0:03:00.9]} 7.
h3 {[%clk 0:03:10.4]} 7... Bh5 {[%clk 0:03:00.8]} 8. d3 {[%clk 0:03:12]} 8...
Be7 {[%clk 0:03:02]} 9. Nbd2 {[%clk 0:03:13.6]} 9... O-O {[%clk 0:03:02.8]} 10.
e4 {[%clk 0:03:15.2]} 10... dxe4 {[%clk 0:02:59.8]} 11. dxe4 {[%clk 0:03:16.3]}
11... Qc7 {[%clk 0:02:56.6]} 12. Qe2 {[%clk 0:03:16.1]} 12... e5 {[%clk
0:02:56]} 13. Rfe1 {[%clk 0:03:09.5]} 13... Rfe8 {[%clk 0:02:55.7]} 14. Qf1
{[%clk 0:03:10.2]} 14... a5 {[%clk 0:02:55.5]} 15. a4 {[%clk 0:03:09.6]} 15...
Bb4 {[%clk 0:02:53.1]} 16. c3 {[%clk 0:03:10.6]} 16... Bf8 {[%clk 0:02:51.5]}
17. Nh4 {[%clk 0:03:03]} 17... Rad8 {[%clk 0:02:51.3]} 18. Rab1 {[%clk
0:02:38.4]} 18... Nc5 {[%clk 0:02:50.9]} 19. Bc1 {[%clk 0:01:53.7]} 19... Nd3
{[%clk 0:02:39.6]} 20. Re3 {[%clk 0:01:54.6]} 20... Qd7 {[%clk 0:02:23.9]} 21.
Nc4 {[%clk 0:01:33.9]} 21... Bc5 {[%clk 0:02:21.1]} 22. Bd2 {[%clk 0:01:28.8]}
22... Bxe3 {[%clk 0:02:13.9]} 23. Bxe3 {[%clk 0:01:29.5]} 23... b5 {[%clk
0:02:09.1]} 24. axb5 {[%clk 0:01:27.7]} 24... cxb5 {[%clk 0:02:09.5]} 25. Nxa5
{[%clk 0:01:29.6]} 25... Qc7 {[%clk 0:02:05.1]} 26. b4 {[%clk 0:01:16.5]} 26...
Qxc3 {[%clk 0:02:04.9]} 27. Nb7 {[%clk 0:01:08.5]} 27... Ra8 {[%clk 0:01:45.1]}
28. Nd6 {[%clk 0:01:05.4]} 28... Reb8 {[%clk 0:01:39.8]} 29. Nhf5 {[%clk
0:01:00]} 29... Ra4 {[%clk 0:01:30.1]} 30. g4 {[%clk 0:00:53.4]} 30... Bg6
{[%clk 0:01:30.1]} 31. Rd1 {[%clk 0:00:51.6]} 31... Nxb4 {[%clk 0:01:19.8]} 32.
Rc1 {[%clk 0:00:41.5]} 32... Nc2 {[%clk 0:01:09]} 33. Qe2 {[%clk 0:00:33.5]}
33... Ra1 {[%clk 0:01:08.3]} 34. Rxa1 {[%clk 0:00:30]} 34... Qxa1+ {[%clk
0:01:08.6]} 35. Kh2 {[%clk 0:00:28]} 35... Nxe3 {[%clk 0:01:07.8]} 36. Qxe3
{[%clk 0:00:29.9]} 36... Bxf5 {[%clk 0:01:07.4]} 37. Nxf5 {[%clk 0:00:30.9]}
37... b4 {[%clk 0:01:01.2]} 38. Qg5 {[%clk 0:00:23.4]} 38... Ne8 {[%clk
0:01:00.9]} 39. Ne7+ {[%clk 0:00:15.2]} 39... Kf8 {[%clk 0:01:00.9]} 40. Nc6
{[%clk 0:00:15.7]} 40... Rb7 {[%clk 0:00:56]} 41. Qd8 {[%clk 0:00:13.1]} 41...
Qc3 {[%clk 0:00:54.8]} 42. Nb8 {[%clk 0:00:06.3]} 42... Qc7 {[%clk 0:00:52.2]}
0-1

[Event "*** MasterClass Titled Tuesday Blitz"]
[Site "Chess.com"]
[Date "2017.12.12"]
[Round "3"]
[White "dusanacns"]
[Black "RitvarsReimanis"]
[Result "0-1"]
[WhiteElo "2601"]
[BlackElo "2467"]
[TimeControl "180+2"]
[EndTime "13:35:36 PST"]
[Termination "RitvarsReimanis won by resignation"]

1. d4 {[%clk 0:02:55.3]} 1... d5 {[%clk 0:03:00.9]} 2. Bf4 {[%clk 0:02:55.7]}
2... e6 {[%clk 0:03:02.2]} 3. e3 {[%clk 0:02:56.8]} 3... f5 {[%clk 0:03:03.7]}
4. Nd2 {[%clk 0:02:52.2]} 4... Bd6 {[%clk 0:03:05]} 5. Ngf3 {[%clk 0:02:51.8]}
5... Nf6 {[%clk 0:03:06.2]} 6. Bd3 {[%clk 0:02:51.4]} 6... O-O {[%clk
0:03:07.6]} 7. h3 {[%clk 0:02:48.8]} 7... Nbd7 {[%clk 0:03:09]} 8. g4 {[%clk
0:02:47.4]} 8... Ne4 {[%clk 0:03:10.1]} 9. c3 {[%clk 0:02:39.7]} 9... Qe7 {[%clk
0:03:10.1]} 10. Ne5 {[%clk 0:01:34.8]} 10... c5 {[%clk 0:03:01.6]} 11. Nxd7
{[%clk 0:01:24.2]} 11... Bxd7 {[%clk 0:03:00.8]} 12. Bxd6 {[%clk 0:01:22.7]}
12... Qxd6 {[%clk 0:03:00.5]} 13. Qe2 {[%clk 0:00:53.6]} 13... c4 {[%clk
0:02:59.3]} 14. Bc2 {[%clk 0:00:50.3]} 14... b5 {[%clk 0:03:00.9]} 15. Nf3
{[%clk 0:00:46.3]} 15... b4 {[%clk 0:03:01.1]} 16. Bxe4 {[%clk 0:00:45.7]} 16...
fxe4 {[%clk 0:03:01.9]} 17. Ne5 {[%clk 0:00:47.1]} 17... bxc3 {[%clk 0:03:03.1]}
18. bxc3 {[%clk 0:00:48]} 18... Rab8 {[%clk 0:03:04]} 19. O-O {[%clk 0:00:43]}
19... Ba4 {[%clk 0:03:04]} 20. Rab1 {[%clk 0:00:41.8]} 20... Qa3 {[%clk
0:03:05]} 21. Qd2 {[%clk 0:00:36.3]} 21... a5 {[%clk 0:02:57]} 22. Kg2 {[%clk
0:00:36.7]} 22... Rfe8 {[%clk 0:02:56.1]} 23. Rfc1 {[%clk 0:00:30.8]} 23... Rf8
{[%clk 0:02:55.8]} 24. f4 {[%clk 0:00:20.9]} 24... exf3+ {[%clk 0:02:56.3]} 25.
Nxf3 {[%clk 0:00:22.3]} 25... Qe7 {[%clk 0:02:46.1]} 26. Ne5 {[%clk 0:00:21.7]}
26... Qa3 {[%clk 0:02:22.1]} 27. Kg3 {[%clk 0:00:20.1]} 27... g6 {[%clk
0:02:20.4]} 28. h4 {[%clk 0:00:20.8]} 28... Qe7 {[%clk 0:02:17.4]} 29. Rxb8
{[%clk 0:00:19.8]} 29... Rxb8 {[%clk 0:02:18.1]} 30. Rf1 {[%clk 0:00:21.4]}
30... Rf8 {[%clk 0:02:16.3]} 31. Rf4 {[%clk 0:00:20.6]} 31... Rxf4 {[%clk
0:02:16.8]} 32. exf4 {[%clk 0:00:22.5]} 32... Qa3 {[%clk 0:02:14.7]} 33. f5
{[%clk 0:00:21.3]} 33... exf5 {[%clk 0:02:11]} 34. gxf5 {[%clk 0:00:23.2]} 34...
Qd6 {[%clk 0:02:10.4]} 35. Qf4 {[%clk 0:00:11.8]} 35... gxf5 {[%clk 0:02:07.8]}
36. Qg5+ {[%clk 0:00:11.3]} 36... Kh8 {[%clk 0:02:00.5]} 37. Kf2 {[%clk
0:00:09.7]} 37... Be8 {[%clk 0:02:00.4]} 38. Qxf5 {[%clk 0:00:10.2]} 38... Kg8
{[%clk 0:01:56.3]} 39. Qg5+ {[%clk 0:00:10.9]} 39... Kf8 {[%clk 0:01:57]} 40.
Kg3 {[%clk 0:00:12]} 40... h6 {[%clk 0:01:43.3]} 41. Qf4+ {[%clk 0:00:11.9]}
41... Kg7 {[%clk 0:01:42.7]} 42. Ng4 {[%clk 0:00:11.2]} 42... Qe6 {[%clk
0:01:18.5]} 43. Qe5+ {[%clk 0:00:12.1]} 43... Qxe5+ {[%clk 0:01:17.6]} 44. dxe5
{[%clk 0:00:13.2]} 44... d4 {[%clk 0:01:14.5]} 45. cxd4 {[%clk 0:00:11.2]} 45...
c3 {[%clk 0:01:15.9]} 46. Ne3 {[%clk 0:00:09.8]} 46... Bg6 {[%clk 0:01:15.2]}
47. h5 {[%clk 0:00:09.7]} 47... c2 {[%clk 0:01:11.2]} 48. Nxc2 {[%clk
0:00:10.6]} 48... Bxc2 {[%clk 0:01:12.8]} 49. d5 {[%clk 0:00:11.4]} 49... Be4
{[%clk 0:01:08.6]} 50. d6 {[%clk 0:00:11.3]} 50... Kf7 {[%clk 0:01:08.6]} 0-1

[Event "*** MasterClass Titled Tuesday Blitz"]
[Site "Chess.com"]
[Date "2017.12.12"]
[Round "3"]
[White "1random"]
[Black "PinguInTheCity"]
[Result "1-0"]
[WhiteElo "2144"]
[BlackElo "1995"]
[TimeControl "180+2"]
[EndTime "13:35:36 PST"]
[Termination "1random won on time"]

1. e4 {[%clk 0:03:01.9]} 1... e5 {[%clk 0:02:55.9]} 2. Nf3 {[%clk 0:03:02.6]}
2... Nc6 {[%clk 0:02:56.6]} 3. Nc3 {[%clk 0:03:04.2]} 3... Bc5 {[%clk
0:02:57.2]} 4. Nxe5 {[%clk 0:03:00.4]} 4... Nxe5 {[%clk 0:02:52.3]} 5. d4 {[%clk
0:03:01.2]} 5... Bd6 {[%clk 0:02:53.1]} 6. dxe5 {[%clk 0:03:01.6]} 6... Bxe5
{[%clk 0:02:55]} 7. Bd3 {[%clk 0:02:54.3]} 7... d6 {[%clk 0:02:50.4]} 8. O-O
{[%clk 0:02:11.8]} 8... Nf6 {[%clk 0:02:43.9]} 9. Ne2 {[%clk 0:02:08]} 9... Nd7
{[%clk 0:02:16.5]} 10. c3 {[%clk 0:01:57.6]} 10... O-O {[%clk 0:02:10.1]} 11.
Nd4 {[%clk 0:01:53.2]} 11... Re8 {[%clk 0:02:00.2]} 12. f4 {[%clk 0:01:45.7]}
12... Bf6 {[%clk 0:02:00.7]} 13. Qf3 {[%clk 0:01:40.5]} 13... c6 {[%clk
0:01:43.3]} 14. Kh1 {[%clk 0:01:27.3]} 14... Nf8 {[%clk 0:01:31.8]} 15. Be3
{[%clk 0:01:19.5]} 15... Ng6 {[%clk 0:01:27.7]} 16. Rad1 {[%clk 0:01:18.2]}
16... Qe7 {[%clk 0:01:00.8]} 17. Bf2 {[%clk 0:00:57.3]} 17... Bd7 {[%clk
0:00:29.7]} 18. Rfe1 {[%clk 0:00:58.2]} 18... Qf8 {[%clk 0:00:24]} 19. Bc2
{[%clk 0:00:55.8]} 19... Rad8 {[%clk 0:00:23.4]} 20. g3 {[%clk 0:00:50.6]} 20...
c5 {[%clk 0:00:17]} 21. Nf5 {[%clk 0:00:44]} 21... Bc6 {[%clk 0:00:14.5]} 22.
Ne3 {[%clk 0:00:42.7]} 22... Ne7 {[%clk 0:00:14.2]} 23. Bb3 {[%clk 0:00:38.1]}
23... b5 {[%clk 0:00:11.6]} 24. Nd5 {[%clk 0:00:34.9]} 24... c4 {[%clk
0:00:11.5]} 25. Nxf6+ {[%clk 0:00:34.4]} 25... gxf6 {[%clk 0:00:12.9]} 26. Bc2
{[%clk 0:00:35.3]} 26... f5 {[%clk 0:00:14.3]} 27. Kg1 {[%clk 0:00:32.3]} 27...
a6 {[%clk 0:00:13.3]} 28. Qh5 {[%clk 0:00:30.9]} 28... fxe4 {[%clk 0:00:12]} 29.
Bxe4 {[%clk 0:00:32.5]} 29... Bxe4 {[%clk 0:00:06.5]} 30. Rxe4 {[%clk
0:00:34.4]} 30... d5 {[%clk 0:00:05.8]} 31. Re5 {[%clk 0:00:29.5]} 31... f6
{[%clk 0:00:05.4]} 32. Re6 {[%clk 0:00:24]} 32... Qf7 {[%clk 0:00:05.6]} 33.
Qg4+ {[%clk 0:00:22.2]} 33... Kh8 {[%clk 0:00:04.4]} 34. Bd4 {[%clk 0:00:22.2]}
34... Ng8 {[%clk 0:00:03.6]} 35. Rde1 {[%clk 0:00:19.5]} 35... Rf8 {[%clk
0:00:02.9]} 36. Qf5 {[%clk 0:00:17.3]} 1-0

[Event "*** MasterClass Titled Tuesday Blitz"]
[Site "Chess.com"]
[Date "2017.12.12"]
[Round "3"]
[White "mazetofonias"]
[Black "FMJoseHerrera"]
[Result "1-0"]
[WhiteElo "2479"]
[BlackElo "2439"]
[TimeControl "180+2"]
[EndTime "13:35:40 PST"]
[Termination "mazetofonias won by checkmate"]

1. d4 {[%clk 0:02:59.8]} 1... Nf6 {[%clk 0:02:56.3]} 2. Nf3 {[%clk 0:03:01.3]}
2... g6 {[%clk 0:02:56.6]} 3. Bg5 {[%clk 0:03:02.6]} 3... Bg7 {[%clk 0:02:57.1]}
4. Nbd2 {[%clk 0:03:04]} 4... O-O {[%clk 0:02:57.9]} 5. c3 {[%clk 0:03:05.5]}
5... d6 {[%clk 0:02:53.6]} 6. e3 {[%clk 0:03:06.9]} 6... Nbd7 {[%clk 0:02:52.3]}
7. Be2 {[%clk 0:03:08.3]} 7... a6 {[%clk 0:02:51.4]} 8. O-O {[%clk 0:03:09.2]}
8... Rb8 {[%clk 0:02:49.9]} 9. Re1 {[%clk 0:03:07.9]} 9... b5 {[%clk 0:02:50.9]}
10. e4 {[%clk 0:03:09.4]} 10... Bb7 {[%clk 0:02:42.8]} 11. Bf1 {[%clk
0:03:10.2]} 11... e5 {[%clk 0:02:39.1]} 12. dxe5 {[%clk 0:03:09.9]} 12... dxe5
{[%clk 0:02:32.2]} 13. Qc2 {[%clk 0:03:06.8]} 13... Qe8 {[%clk 0:02:05.9]} 14.
a4 {[%clk 0:03:06.9]} 14... Nc5 {[%clk 0:01:59.2]} 15. axb5 {[%clk 0:03:06.5]}
15... axb5 {[%clk 0:02:01.1]} 16. Ra5 {[%clk 0:03:07.5]} 16... Bc6 {[%clk
0:01:49.5]} 17. Bh4 {[%clk 0:03:02.2]} 17... Nh5 {[%clk 0:01:39.8]} 18. b4
{[%clk 0:02:57.1]} 18... Nb7 {[%clk 0:01:34.1]} 19. Ra3 {[%clk 0:02:55.2]} 19...
Nd6 {[%clk 0:01:35.1]} 20. Nb3 {[%clk 0:02:52.9]} 20... Nf4 {[%clk 0:01:35.4]}
21. Nc5 {[%clk 0:02:52.3]} 21... f5 {[%clk 0:01:36.9]} 22. Nd2 {[%clk
0:02:49.3]} 22... Kh8 {[%clk 0:01:29.8]} 23. Ra6 {[%clk 0:02:46.6]} 23... Rb6
{[%clk 0:01:29.3]} 24. Ra7 {[%clk 0:02:43.1]} 24... fxe4 {[%clk 0:01:26.7]} 25.
Ndxe4 {[%clk 0:02:33.8]} 25... Nf5 {[%clk 0:01:27.2]} 26. Bg3 {[%clk 0:02:32.7]}
26... Nxg3 {[%clk 0:01:22.4]} 27. hxg3 {[%clk 0:02:34.6]} 27... Nd5 {[%clk
0:01:23.9]} 28. Be2 {[%clk 0:02:16.6]} 28... Qb8 {[%clk 0:01:18.5]} 29. Rea1
{[%clk 0:02:15.2]} 29... Qc8 {[%clk 0:01:12.7]} 30. Bf3 {[%clk 0:02:12.2]} 30...
Qf5 {[%clk 0:01:12.2]} 31. Qe2 {[%clk 0:02:01.3]} 31... g5 {[%clk 0:01:12.3]}
32. Bg4 {[%clk 0:01:58]} 32... Qg6 {[%clk 0:01:11.7]} 33. Ne6 {[%clk 0:01:46.9]}
33... Rf7 {[%clk 0:00:52.8]} 34. Ra8+ {[%clk 0:00:48.7]} 34... Bxa8 {[%clk
0:00:51.3]} 35. Rxa8+ {[%clk 0:00:50.6]} 35... Bf8 {[%clk 0:00:52.9]} 36. Nxf8
{[%clk 0:00:50.4]} 36... Rxf8 {[%clk 0:00:54.3]} 37. Rxf8+ {[%clk 0:00:49.4]}
37... Kg7 {[%clk 0:00:55.9]} 38. Ra8 {[%clk 0:00:50.9]} 38... Qc6 {[%clk
0:00:55.6]} 39. Ra3 {[%clk 0:00:48.8]} 39... h6 {[%clk 0:00:53.9]} 40. Bf3
{[%clk 0:00:49.4]} 40... Ra6 {[%clk 0:00:53.1]} 41. Rxa6 {[%clk 0:00:48.3]}
41... Qxa6 {[%clk 0:00:55]} 42. Nxg5 {[%clk 0:00:48.9]} 42... Qa1+ {[%clk
0:00:54.8]} 43. Kh2 {[%clk 0:00:49.4]} 43... Nf6 {[%clk 0:00:47.8]} 44. Ne4
{[%clk 0:00:48]} 44... Nd5 {[%clk 0:00:45.4]} 45. Qxb5 {[%clk 0:00:45.3]} 45...
Qa2 {[%clk 0:00:41.5]} 46. Qd7+ {[%clk 0:00:44.7]} 46... Kg6 {[%clk 0:00:41.8]}
47. Bh5+ {[%clk 0:00:32.5]} 47... Kxh5 {[%clk 0:00:29.5]} 48. Qf5# {[%clk
0:00:33.6]} 1-0

[Event "*** MasterClass Titled Tuesday Blitz"]
[Site "Chess.com"]
[Date "2017.12.12"]
[Round "3"]
[White "JSMastropiero"]
[Black "Marcin"]
[Result "1-0"]
[WhiteElo "2308"]
[BlackElo "2185"]
[TimeControl "180+2"]
[EndTime "13:35:43 PST"]
[Termination "JSMastropiero won by checkmate"]

1. d4 {[%clk 0:03:01.9]} 1... d5 {[%clk 0:03:00.1]} 2. c4 {[%clk 0:03:02]} 2...
c6 {[%clk 0:03:01.6]} 3. Nf3 {[%clk 0:03:02]} 3... Nf6 {[%clk 0:03:02.7]} 4. Nc3
{[%clk 0:03:01.4]} 4... a6 {[%clk 0:03:03.9]} 5. g3 {[%clk 0:03:01]} 5... dxc4
{[%clk 0:03:02.4]} 6. Bg2 {[%clk 0:03:00.4]} 6... e6 {[%clk 0:03:03.5]} 7. O-O
{[%clk 0:03:00.4]} 7... Be7 {[%clk 0:03:04.8]} 8. Ne5 {[%clk 0:02:58.5]} 8...
O-O {[%clk 0:02:56.3]} 9. Nxc4 {[%clk 0:02:55.8]} 9... b5 {[%clk 0:02:57.1]} 10.
Ne5 {[%clk 0:02:55.8]} 10... Bb7 {[%clk 0:02:58.6]} 11. Bf4 {[%clk 0:02:49.7]}
11... Nd5 {[%clk 0:02:58.3]} 12. Rc1 {[%clk 0:02:47.2]} 12... Nxf4 {[%clk
0:02:51.5]} 13. gxf4 {[%clk 0:02:49.1]} 13... Qb6 {[%clk 0:02:52.2]} 14. Ne4
{[%clk 0:02:44.4]} 14... Rd8 {[%clk 0:02:47]} 15. e3 {[%clk 0:02:44.5]} 15...
Nd7 {[%clk 0:02:44]} 16. Nd3 {[%clk 0:02:42.7]} 16... Nf6 {[%clk 0:02:39.5]} 17.
Nec5 {[%clk 0:02:41.2]} 17... Rac8 {[%clk 0:02:33.8]} 18. Qb3 {[%clk 0:02:33.7]}
18... Nd5 {[%clk 0:02:28]} 19. Rfd1 {[%clk 0:02:29.3]} 19... h6 {[%clk
0:02:27.1]} 20. e4 {[%clk 0:02:00.8]} 20... Nf6 {[%clk 0:02:27.1]} 21. Nxe6
{[%clk 0:02:00.7]} 21... Re8 {[%clk 0:02:08.7]} 22. Ne5 {[%clk 0:01:53.9]} 22...
fxe6 {[%clk 0:01:50.2]} 23. Qxe6+ {[%clk 0:01:55.8]} 23... Kh7 {[%clk
0:01:50.2]} 24. Qf5+ {[%clk 0:01:48.5]} 24... Kg8 {[%clk 0:01:49.4]} 25. Rc3
{[%clk 0:01:31.2]} 25... Bf8 {[%clk 0:01:18.9]} 26. Rg3 {[%clk 0:01:28.6]} 26...
c5 {[%clk 0:01:12.3]} 27. d5 {[%clk 0:01:28]} 27... Rcd8 {[%clk 0:01:07.9]} 28.
Qg6 {[%clk 0:01:12.4]} 28... Re6 {[%clk 0:00:47.3]} 29. Nf7 {[%clk 0:00:37.7]}
29... Nxd5 {[%clk 0:00:25]} 30. Nxh6+ {[%clk 0:00:34.7]} 30... Kh8 {[%clk
0:00:26.5]} 31. Nf7+ {[%clk 0:00:31]} 31... Kg8 {[%clk 0:00:28]} 32. Qg5 {[%clk
0:00:28.5]} 32... Rd7 {[%clk 0:00:25.1]} 33. exd5 {[%clk 0:00:26.3]} 33... Rf6
{[%clk 0:00:24.3]} 34. Ne5 {[%clk 0:00:23.2]} 34... Rd8 {[%clk 0:00:24.3]} 35.
d6 {[%clk 0:00:20.6]} 35... Bxg2 {[%clk 0:00:23.5]} 36. Rxg2 {[%clk 0:00:17.8]}
36... Rdxd6 {[%clk 0:00:23.3]} 37. Rxd6 {[%clk 0:00:14.5]} 37... Qxd6 {[%clk
0:00:25.2]} 38. h4 {[%clk 0:00:15.4]} 38... Qd1+ {[%clk 0:00:26]} 39. Kh2 {[%clk
0:00:15.2]} 39... Rh6 {[%clk 0:00:27.5]} 40. Qxh6 {[%clk 0:00:14.6]} 40... Qd2
{[%clk 0:00:25.2]} 41. Qe6+ {[%clk 0:00:15]} 41... Kh7 {[%clk 0:00:25.1]} 42.
Qf5+ {[%clk 0:00:16.5]} 42... Kg8 {[%clk 0:00:26.2]} 43. Qf7+ {[%clk 0:00:17.5]}
43... Kh7 {[%clk 0:00:27.6]} 44. Qxf8 {[%clk 0:00:18.1]} 44... Qe2 {[%clk
0:00:28.8]} 45. Qxg7# {[%clk 0:00:18.8]} 1-0